fUSD/lending_fUSD_20241221
["ID","MTS","AMOUNT","RATE_DAILY","PERIOD"]
[346235198,1734795608156,-500.0,0.0002,2]
[346235199,1734795608182,-500.0,0.0002,2]
[346235200,1734795608210,-500.0,0.0002,2]
[346235201,1734795608236,-235.64,0.0002,2]
[346235202,1734795608262,-500.0,0.0002,2]
[346235203,1734795608288,-500.0,0.0002,2]
[346235204,1734795608313,-500.0,0.0002,2]
[346235205,1734795608344,-656.83,0.0002,2]
[346235206,1734795608372,-500.0,0.0002,2]
[346235207,1734795608398,-500.0,0.0002,2]
[346235208,1734795608426,-500.0,0.0002,2]
[346235209,1734795608454,-500.0,0.0002,2]
[346235210,1734795608482,-500.0,0.0002,2]
[346235211,1734795608509,-500.0,0.0002,2]
[346235212,1734795608535,-500.0,0.0002,2]
[346235213,1734795608560,-500.0,0.0002,2]
[346235214,1734795608589,-500.0,0.0002,2]
[346235215,1734795608615,-500.0,0.0002,2]
[346235216,1734795608641,-500.0,0.0002,2]
[346235217,1734795608667,-500.0,0.0002,2]
[346235218,1734795608692,-500.0,0.0002,2]
[346235219,1734795608717,-500.0,0.0002,2]
[346235220,1734795608742,-500.0,0.0002,2]
[346235221,1734795608767,-517.42236895,0.0002,2]
[346235222,1734795608791,-568.7,0.0002,2]
[346235223,1734795608815,-500.0,0.0002,2]
[346235224,1734795608842,-500.0,0.0002,2]
[346235225,1734795608867,-500.0,0.0002,2]
[346235226,1734795608893,-731.7,0.0002,2]
[346235227,1734795608918,-500.0,0.0002,2]
[346235228,1734795608943,-500.0,0.0002,2]
[346235229,1734795608968,-500.0,0.0002,2]
[346235230,1734795608994,-500.0,0.0002,2]
[346235231,1734795609019,-500.0,0.0002,2]
[346235232,1734795609043,-500.0,0.0002,2]
[346235233,1734795609068,-500.0,0.0002,2]
[346235234,1734795609094,-643.87,0.0002,2]
[346235235,1734795609119,-2114.92,0.0002,2]
[346235236,1734795609145,-286.588,0.0002,2]
[346235237,1734795609170,-500.0,0.0002,2]
[346235238,1734795609195,-500.0,0.0002,2]
[346235239,1734795609220,-500.0,0.0002,2]
[346235240,1734795609245,-500.0,0.0002,2]
[346235241,1734795609270,-500.0,0.0002,2]
[346235242,1734795609296,-500.0,0.0002,2]
[346235243,1734795609355,-500.0,0.0002,2]
[346235244,1734795609412,-500.0,0.0002,2]
[346235245,1734795609471,-500.0,0.0002,2]
[346235246,1734795609529,-495.86832324,0.0002,2]
[346235247,1734795609588,-500.0,0.0002,2]
[346235248,1734795609645,-500.0,0.0002,2]
[346235249,1734795609703,-500.0,0.0002,2]
[346235250,1734795609761,-184.35691125,0.0002,2]
[346235251,1734795609821,-500.0,0.0002,2]
[346235252,1734795609882,-500.0,0.0002,2]
[346235253,1734795609943,-2384.6587726,0.0002,2]
[346235254,1734795610009,-500.0,0.0002,2]
[346235255,1734795610253,-500.0,0.0002,2]
[346235256,1734795610315,-190.8360519,0.0002,2]
[346235257,1734795610376,-500.0,0.0002,2]
[346235258,1734795610441,-500.0,0.0002,2]
[346235259,1734795610502,-500.0,0.0002,2]
[346235260,1734795610570,-500.0,0.0002,2]
[346235261,1734795610642,-500.0,0.0002,2]
[346235262,1734795610715,-500.0,0.0002,2]
[346235263,1734795610780,-500.0,0.0002,2]
[346235264,1734795610865,-500.0,0.0002,2]
[346235265,1734795610933,-3000.0,0.0002,2]
[346235266,1734795610994,-500.0,0.0002,2]
[346235267,1734795611062,-500.0,0.0002,2]
[346235268,1734795611122,-561.53,0.0002,2]
[346235269,1734795611182,-500.0,0.0002,2]
[346235270,1734795611240,-500.0,0.0002,2]
[346235271,1734795611299,-500.0,0.0002,2]
[346235272,1734795611355,-500.0,0.0002,2]
[346235273,1734795611413,-500.0,0.0002,2]
[346235274,1734795611472,-500.0,0.0002,2]
[346235275,1734795611530,-500.0,0.0002,2]
[346235276,1734795611589,-463.99001436,0.0002,2]
[346235277,1734795611647,-500.0,0.0002,2]
[346235278,1734795611706,-500.0,0.0002,2]
[346235279,1734795611762,-500.0,0.0002,2]
[346235280,1734795611818,-500.0,0.0002,2]
[346235281,1734795611876,-500.0,0.0002,2]
[346235282,1734795611932,-772.72315,0.0002,2]
[346235283,1734795611991,-708.07,0.0002,2]
[346235284,1734795612049,-1009.95,0.0002,2]
[346235285,1734795612106,-500.0,0.0002,2]
[346235286,1734795612163,-1780.27,0.0002,2]
[346235287,1734795612220,-500.0,0.0002,2]
[346235288,1734795612278,-500.0,0.0002,2]
[346235289,1734795612335,-500.0,0.0002,2]
[346235290,1734795612392,-748.88,0.0002,2]
[346235291,1734795612448,-207.89041876,0.0002,2]
[346235292,1734795612508,-190.25373041,0.0002,2]
[346235293,1734795612576,-856.5,0.0002,2]
[346235294,1734795612644,-559.84,0.0002,2]
[346235295,1734795612708,-500.0,0.0002,2]
[346235296,1734795612768,-795.04,0.0002,2]
[346235297,1734795612827,-500.0,0.0002,2]
[346235298,1734795612888,-776.12,0.0002,2]
[346235299,1734795612945,-500.0,0.0002,2]
[346235300,1734795613003,-530.4,0.0002,2]
[346235301,1734795613060,-653.7,0.0002,2]
[346235302,1734795613117,-500.0,0.0002,2]
[346235303,1734795613181,-544.98,0.0002,2]
[346235304,1734795613245,-500.0,0.0002,2]
[346235305,1734795613301,-769.59,0.0002,2]
[346235306,1734795613355,-1443.92,0.0002,2]
[346235307,1734795613410,-500.0,0.0002,2]
[346235308,1734795613468,-1930.36,0.0002,2]
[346235309,1734795613526,-500.0,0.0002,2]
[346235310,1734795613585,-500.35,0.0002,2]
[346235311,1734795613642,-922.36,0.0002,2]
[346235312,1734795613700,-1005.39,0.0002,2]
[346235313,1734795613756,-587.85,0.0002,2]
[346235314,1734795613820,-570.13,0.0002,2]
[346235315,1734795613883,-500.0,0.0002,2]
[346235316,1734795613950,-579.6,0.0002,2]
[346235317,1734795614012,-500.0,0.0002,2]
[346235318,1734795614071,-547.29,0.0002,2]
[346235319,1734795614138,-1077.83,0.0002,2]
[346235320,1734795614198,-2128.63,0.0002,2]
[346235321,1734795614257,-942.84,0.0002,2]
[346235322,1734795614319,-500.0,0.0002,2]
[346235323,1734795614383,-514.16,0.0002,2]
[346235324,1734795614444,-4151.52,0.0002,2]
[346235325,1734795614505,-765.17,0.0002,2]
[346235326,1734795614565,-500.0,0.0002,2]
[346235327,1734795614624,-1040.89,0.0002,2]
[346235328,1734795614684,-981.78,0.0002,2]
[346235329,1734795614743,-500.0,0.0002,2]
[346235330,1734795614799,-500.0,0.0002,2]
[346235331,1734795614855,-2160.95,0.0002,2]
[346235332,1734795614915,-2134.04,0.0002,2]
[346235333,1734795614975,-539.8,0.0002,2]
[346235334,1734795615034,-500.0,0.0002,2]
[346235335,1734795615094,-500.0,0.0002,2]
[346235336,1734795615167,-599.48,0.0002,2]
[346235337,1734795615229,-2849.36,0.0002,2]
[346235338,1734795615290,-1532.96,0.0002,2]
[346235339,1734795615350,-552.35,0.0002,2]
[346235340,1734795615411,-661.03,0.0002,2]
[346235341,1734795615476,-771.43,0.0002,2]
[346235342,1734795615537,-500.0,0.0002,2]
[346235343,1734795615598,-500.0,0.0002,2]
[346235344,1734795615659,-868.57,0.0002,2]
[346235345,1734795615717,-500.0,0.0002,2]
[346235346,1734795615778,-500.0,0.0002,2]
[346235347,1734795615840,-500.0,0.0002,2]
[346235348,1734795615902,-500.0,0.0002,2]
[346235349,1734795615966,-500.0,0.0002,2]
[346235350,1734795616034,-871.38,0.0002,2]
[346235351,1734795616098,-1128.63,0.0002,2]
[346235352,1734795616161,-500.0,0.0002,2]
[346235353,1734795616223,-93038.44166212,0.0002,7]
[346235354,1734795616287,-500.0,0.0002,2]
[346235355,1734795616349,-500.0,0.0002,2]
[346235356,1734795616411,-1344.88,0.0002,2]
[346235357,1734795616487,-500.0,0.0002,2]
[346235358,1734795616555,-500.0,0.0002,2]
[346235359,1734795616629,-500.0,0.0002,2]
[346235360,1734795616726,-2782.35,0.0002,2]
[346235361,1734795616811,-500.0,0.0002,2]
[346235362,1734795616872,-1580.0,0.0002,2]
[346235363,1734795616933,-4184.23,0.0002,2]
[346235364,1734795616994,-500.0,0.0002,2]
[346235365,1734795617053,-500.0,0.0002,2]
[346235366,1734795617113,-500.0,0.0002,2]
[346235367,1734795617174,-500.0,0.0002,2]
[346235368,1734795617234,-797.66,0.0002,2]
[346235369,1734795617294,-500.0,0.0002,2]
[346235370,1734795617352,-627.92,0.0002,2]
[346235371,1734795617412,-500.0,0.0002,2]
[346235372,1734795617475,-500.0,0.0002,2]
[346235373,1734795617538,-500.0,0.0002,2]
[346235374,1734795617598,-500.0,0.0002,2]
[346235375,1734795617660,-500.0,0.0002,2]
[346235376,1734795617722,-3083.6,0.0002,2]
[346235377,1734795617782,-409.02484322,0.0002,2]
[346235378,1734795617851,-500.0,0.0002,2]
[346235379,1734795617913,-500.0,0.0002,2]
[346235380,1734795617975,-557.74,0.0002,2]
[346235381,1734795618041,-805.69,0.0002,2]
[346235382,1734795618109,-500.0,0.0002,2]
[346235383,1734795618384,-558.24,0.0002,2]
[346235384,1734795618448,-500.0,0.0002,2]
[346235385,1734795618509,-760.1,0.0002,2]
[346235386,1734795618572,-500.0,0.0002,2]
[346235387,1734795618633,-500.0,0.0002,2]
[346235388,1734795618693,-500.0,0.0002,2]
[346235389,1734795618757,-500.0,0.0002,2]
[346235390,1734795618820,-500.0,0.0002,2]
[346235391,1734795618884,-507.48,0.0002,2]
[346235392,1734795618949,-988.55,0.0002,2]
[346235393,1734795619016,-1124.0,0.0002,2]
[346235394,1734795619081,-500.0,0.0002,2]
[346235395,1734795619154,-500.0,0.0002,2]
[346235396,1734795619229,-500.0,0.0002,2]
[346235397,1734795619293,-563.11,0.0002,2]
[346235398,1734795619358,-500.0,0.0002,2]
[346235399,1734795619419,-500.0,0.0002,2]
[346235400,1734795619484,-857.4,0.0002,2]
[346235401,1734795619546,-500.0,0.0002,2]
[346235402,1734795619608,-1246.55,0.0002,2]
[346235403,1734795619675,-1000.38,0.0002,2]
[346235404,1734795619737,-500.0,0.0002,2]
[346235405,1734795619801,-649.98,0.0002,2]
[346235406,1734795619864,-500.0,0.0002,2]
[346235407,1734795619927,-500.0,0.0002,2]
[346235408,1734795619987,-500.0,0.0002,2]
[346235409,1734795620047,-775.64,0.0002,2]
[346235410,1734795620109,-500.0,0.0002,2]
[346235411,1734795620173,-590.35,0.0002,2]
[346235412,1734795620234,-742.64,0.0002,2]
[346235413,1734795620296,-500.0,0.0002,2]
[346235414,1734795620354,-500.0,0.0002,2]
[346235415,1734795620414,-500.0,0.0002,2]
[346235416,1734795620477,-1937.97,0.0002,2]
[346235417,1734795620536,-500.0,0.0002,2]
[346235418,1734795620598,-1200.92,0.0002,2]
[346235419,1734795620953,500.0,0.00019178,2]
[346235420,1734795621045,500.0,0.00019452,2]
[346235421,1734795621122,500.0,0.00019726,2]
[346235422,1734795621193,500.0,0.0002,2]
[346235423,1734795621498,500.0,0.00019178,2]
[346235424,1734795621607,509.29,0.000189,2]
[346235425,1734795621836,250.0,0.00018469,2]
[346235426,1734795622189,500.0,0.00019178,2]
[346235427,1734795622537,1012.76196331,0.00019078,2]
[346235428,1734795622691,495.17,0.00019452,2]
[346235429,1734795623255,1247.0,0.0001998,2]
[346235430,1734795623484,500.0,0.00019178,2]
[346235431,1734795623585,188.40899429,0.0001988,2]
[346235432,1734795623814,300.0,0.00019451,2]
[346235433,1734795624141,2000.0,0.00019726,2]
[346235434,1734795624387,1066.99468662,0.00019331,2]
[346235435,1734795624626,158.79,0.00019968,2]
[346235436,1734795624689,509.21,0.00019726,2]
[346235437,1734795625554,2810.0,0.0001984,2]
[346235438,1734795626382,1031.79663953,0.00019443,2]
[346235439,1734795626719,818.15,0.00019178,2]
[346235440,1734795626913,2374.47,0.00019178,2]
[346235441,1734795627032,818.15,0.00019452,2]
[346235442,1734795627212,1800.79,0.00019178,2]
[346235443,1734795627279,2374.47,0.00019452,2]
[346235444,1734795627583,818.15,0.00019726,2]
[346235445,1734795627651,1800.79,0.00019452,2]
[346235446,1734795627718,2374.47,0.00019726,2]
[346235447,1734795627790,818.15,0.0002,2]
[346235448,1734795627867,1800.79,0.00019726,2]
[346235449,1734795627933,2374.47,0.0002,2]
[346235450,1734795628036,1800.79,0.0002,2]
[346235451,1734795628912,500.0,0.00019178,2]
[346235452,1734795629542,500.0,0.00019452,2]
[346235453,1734795629825,500.0,0.00019726,2]
[346235454,1734795629900,2318.63,0.00019178,2]
[346235455,1734795630130,150.0,0.0001984,2]
[346235456,1734795630194,500.0,0.0002,2]
[346235457,1734795630258,2318.63,0.00019452,2]
[346235458,1734795630510,2318.63,0.00019726,2]
[346235459,1734795630774,2318.63,0.0002,2]
[346235460,1734795632267,500.0,0.00019178,2]
[346235461,1734795632503,500.0,0.00019452,2]
[346235462,1734795632788,500.0,0.00019726,2]
[346235463,1734795633092,500.0,0.0002,2]
[346235464,1734795634298,500.0,0.00019178,2]
[346235465,1734795634563,500.0,0.00019452,2]
[346235466,1734795634827,500.0,0.00019726,2]
[346235467,1734795635078,500.0,0.0002,2]
[346235468,1734795635981,500.0,0.00019178,2]
[346235469,1734795636205,500.0,0.00019178,2]
[346235470,1734795636281,500.0,0.00019452,2]
[346235471,1734795636524,500.0,0.00019452,2]
[346235472,1734795636613,500.0,0.00019726,2]
[346235473,1734795636837,500.0,0.00019726,2]
[346235474,1734795636941,500.0,0.0002,2]
[346235475,1734795637116,500.0,0.0002,2]
[346235476,1734795638067,500.0,0.00019178,2]
[346235477,1734795638306,1000.0,0.000189,2]
[346235478,1734795638380,500.0,0.00019452,2]
[346235479,1734795638463,1000.0,0.00019177,2]
[346235480,1734795638542,1101.0,0.0001984,2]
[346235481,1734795638621,500.0,0.00019726,2]
[346235482,1734795638885,500.0,0.0002,2]
[346235483,1734795639812,1277.47,0.00019178,2]
[346235484,1734795640086,1277.47,0.00019452,2]
[346235485,1734795640351,1277.47,0.00019726,2]
[346235486,1734795640606,1277.47,0.0002,2]
[346235487,1734795643683,1120.44967562,0.000196,2]
[346235488,1734795648349,500.0,0.00019178,2]
[346235489,1734795648641,500.0,0.00019178,2]
[346235490,1734795649931,500.0,0.00019452,2]
[346235491,1734795650632,500.0,0.00019178,2]
[346235492,1734795650695,500.0,0.00019452,2]
[346235493,1734795650936,500.0,0.00019452,2]
[346235494,1734795652538,500.0,0.00019726,2]
[346235495,1734795652838,644.31351473,0.0002,2]
[346235496,1734795654236,500.0,0.00019726,2]
[346235497,1734795654656,500.0,0.00019178,2]
[346235498,1734795654786,500.0,0.0002,2]
[346235499,1734795654886,999.0,0.00018898,2]
[346235500,1734795654951,500.0,0.00019452,2]
[346235501,1734795655196,500.0,0.00019726,2]
[346235502,1734795655261,999.0,0.00018898,2]
[346235503,1734795655452,999.0,0.00018898,2]
[346235504,1734795655513,500.0,0.0002,2]
[346235505,1734795655720,999.0,0.00018898,2]
[346235506,1734795655793,500.0,0.00019178,2]
[346235507,1734795655958,999.0,0.00018898,2]
[346235508,1734795656039,500.0,0.00019452,2]
[346235509,1734795656226,999.0,0.00018898,2]
[346235510,1734795656433,500.0,0.00019726,2]
[346235511,1734795656505,999.0,0.00018898,2]
[346235512,1734795656715,500.0,0.0002,2]
[346235513,1734795656779,999.0,0.00018898,2]
[346235514,1734795657076,999.0,0.00018898,2]
[346235515,1734795657346,999.0,0.00018898,2]
[346235516,1734795657644,999.0,0.00018898,2]
[346235517,1734795657908,999.0,0.00018898,2]
[346235518,1734795658307,999.0,0.00018898,2]
[346235519,1734795658571,999.0,0.00018898,2]
[346235520,1734795658846,999.0,0.00018898,2]
[346235521,1734795659094,999.0,0.00018898,2]
[346235522,1734795659360,999.0,0.00018898,2]
[346235523,1734795659546,500.0,0.00019178,2]
[346235524,1734795659608,999.0,0.00018898,2]
[346235525,1734795659837,500.0,0.00019452,2]
[346235526,1734795659901,999.0,0.00018898,2]
[346235527,1734795660089,500.0,0.00019726,2]
[346235528,1734795660169,1019.0,0.00018898,2]
[346235529,1734795660371,500.0,0.0002,2]
[346235530,1734795660762,500.0,0.00019178,2]
[346235531,1734795661079,500.0,0.00019452,2]
[346235532,1734795661360,500.0,0.00019726,2]
[346235533,1734795661634,500.0,0.0002,2]
[346235534,1734795662156,500.0,0.00019178,2]
[346235535,1734795662409,500.0,0.00019452,2]
[346235536,1734795662720,500.0,0.00019726,2]
[346235537,1734795663024,500.0,0.0002,2]
[346235538,1734795665393,500.0,0.00019178,2]
[346235539,1734795665674,500.0,0.00019452,2]
[346235540,1734795665952,577.77166584,0.00019726,2]
[346235541,1734795669403,500.0,0.00019178,2]
[346235542,1734795669763,500.0,0.00019452,2]
[346235543,1734795670011,500.0,0.00019726,2]
[346235544,1734795670501,500.0,0.0002,2]
[346235545,1734795672327,226.585192,0.00019178,2]
[346235546,1734795672654,226.585192,0.00019452,2]
[346235547,1734795672754,1192.3293863,0.0002,2]
[346235548,1734795672965,226.585192,0.00019726,2]
[346235549,1734795673100,723.81,0.00019178,2]
[346235550,1734795673325,226.585192,0.0002,2]
[346235551,1734795673538,723.81,0.00019452,2]
[346235552,1734795673953,723.81,0.00019726,2]
[346235553,1734795674206,723.81,0.0002,2]
[346235554,1734795674479,1120.74,0.00019178,2]
[346235555,1734795674817,1120.74,0.00019452,2]
[346235556,1734795674930,547.36,0.00019178,2]
[346235557,1734795675107,1120.74,0.00019726,2]
[346235558,1734795675204,547.36,0.00019452,2]
[346235559,1734795675391,1120.74,0.0002,2]
[346235560,1734795675475,547.36,0.00019726,2]
[346235561,1734795675801,547.36,0.0002,2]
[346235562,1734795676064,3486.86,0.00019178,2]
[346235563,1734795676384,3486.86,0.00019452,2]
[346235564,1734795676603,3486.86,0.00019726,2]
[346235565,1734795676865,500.0,0.00019178,2]
[346235566,1734795677146,500.0,0.00019452,2]
[346235567,1734795677409,500.0,0.00019726,2]
[346235568,1734795677697,500.0,0.0002,2]
[346235569,1734795678915,3486.86,0.0002,2]
[346235570,1734795679826,1274.1003,0.000189,2]
[346235571,1734795682328,940.53,0.00019178,2]
[346235572,1734795682467,940.53,0.00019452,2]
[346235573,1734795682711,940.53,0.00019726,2]
[346235574,1734795683026,940.53,0.0002,2]
[346235575,1734795683295,10258.9725,0.000189,2]
[346235576,1734795683533,580.87,0.0001942,2]
[346235577,1734795684855,500.0,0.00019178,2]
[346235578,1734795685171,500.0,0.00019452,2]
[346235579,1734795685442,500.0,0.00019726,2]
[346235580,1734795685709,500.0,0.0002,2]
[346235581,1734795686846,664.72,0.00019178,2]
[346235582,1734795687116,664.72,0.00019452,2]
[346235583,1734795687174,250.0,0.0001942,2]
[346235584,1734795687434,664.72,0.00019726,2]
[346235585,1734795687698,664.72,0.0002,2]
[346235586,1734795691024,500.0,0.00019178,2]
[346235587,1734795691247,500.0,0.00019452,2]
[346235588,1734795691556,500.0,0.00019726,2]
[346235589,1734795693085,523.27,0.00019178,2]
[346235590,1734795693329,523.27,0.00019452,2]
[346235591,1734795693687,523.27,0.00019726,2]
[346235592,1734795693949,523.27,0.0002,2]
[346235593,1734795695481,642.86,0.00019178,2]
[346235594,1734795695819,642.86,0.00019452,2]
[346235595,1734795695888,500.0,0.00019178,2]
[346235596,1734795696093,642.86,0.00019726,2]
[346235597,1734795696160,500.0,0.00019452,2]
[346235598,1734795696339,642.86,0.0002,2]
[346235599,1734795696406,613.36919959,0.00019726,2]
[346235600,1734795698366,281.58,0.00019178,2]
[346235601,1734795701004,1316.66,0.00019178,2]
[346235602,1734795701300,1316.66,0.00019452,2]
[346235603,1734795701560,1316.66,0.00019726,2]
[346235604,1734795701870,1316.66,0.0002,2]
[346235605,1734795702428,500.0,0.00019178,2]
[346235606,1734795702932,500.0,0.00019452,2]
[346235607,1734795703001,500.0,0.00019726,2]
[346235608,1734795704639,500.0,0.0002,2]
[346235609,1734795706753,500.0,0.00019178,2]
[346235610,1734795706966,500.0,0.00019452,2]
[346235611,1734795707265,500.0,0.00019726,2]
[346235612,1734795707353,500.0,0.00019178,2]
[346235613,1734795707607,500.0,0.00019452,2]
[346235614,1734795707776,500.0,0.0002,2]
[346235615,1734795707927,500.0,0.00019726,2]
[346235616,1734795708181,500.0,0.0002,2]
[346235617,1734795714768,500.0,0.00019178,2]
[346235618,1734795715024,833.65,0.00019178,2]
[346235619,1734795715086,500.0,0.00019452,2]
[346235620,1734795715284,833.65,0.00019452,2]
[346235621,1734795715559,833.65,0.00019726,2]
[346235622,1734795715819,833.65,0.0002,2]
[346235623,1734795717674,633.42,0.00019178,2]
[346235624,1734795717941,633.42,0.00019452,2]
[346235625,1734795718008,500.0,0.00019178,2]
[346235626,1734795718334,500.0,0.00019452,2]
[346235627,1734795718393,633.42,0.00019726,2]
[346235628,1734795718497,500.0,0.00019726,2]
[346235629,1734795718561,633.42,0.0002,2]
[346235630,1734795718756,500.0,0.0002,2]
[346235631,1734795723468,500.0,0.00019178,2]
[346235632,1734795723732,500.0,0.00019452,2]
[346235633,1734795724170,500.0,0.00019726,2]
[346235634,1734795724476,500.0,0.0002,2]
[346235635,1734795728053,500.0,0.00019178,2]
[346235636,1734795728315,500.0,0.00019452,2]
[346235637,1734795728588,500.0,0.00019726,2]
[346235638,1734795728869,500.0,0.0002,2]
[346235639,1734795732549,1903.42,0.0002,2]
[346235640,1734795737642,936.67,0.00019178,2]
[346235641,1734795737951,936.67,0.00019452,2]
[346235642,1734795738189,936.67,0.00019726,2]
[346235643,1734795738438,500.0,0.00019178,2]
[346235644,1734795738514,936.67,0.0002,2]
[346235645,1734795738727,500.0,0.00019452,2]
[346235646,1734795739004,500.0,0.00019726,2]
[346235647,1734795739159,714.5,0.00019178,2]
[346235648,1734795739327,500.0,0.0002,2]
[346235649,1734795739530,714.5,0.00019452,2]
[346235650,1734795739859,714.5,0.00019726,2]
[346235651,1734795740133,714.5,0.0002,2]
[346235652,1734795740204,500.0,0.00019178,2]
[346235653,1734795740378,500.0,0.00019452,2]
[346235654,1734795740680,500.0,0.00019726,2]
[346235655,1734795740925,500.0,0.0002,2]
[346235656,1734795742338,500.0,0.00019178,2]
[346235657,1734795742590,500.0,0.00019452,2]
[346235658,1734795742829,500.0,0.00019726,2]
[346235659,1734795743125,500.0,0.0002,2]
[346235660,1734795749404,500.0,0.00019178,2]
[346235661,1734795749689,500.0,0.00019452,2]
[346235662,1734795749961,500.0,0.00019726,2]
[346235663,1734795750223,500.0,0.0002,2]
[346235664,1734795750536,500.0,0.00019178,2]
[346235665,1734795752674,2569.66,0.00019178,2]
[346235666,1734795753150,2569.66,0.00019452,2]
[346235667,1734795753424,2569.66,0.00019726,2]
[346235668,1734795753749,2569.66,0.0002,2]
[346235669,1734795755214,500.0,0.00019178,2]
[346235670,1734795755477,500.0,0.00019452,2]
[346235671,1734795755802,500.0,0.00019726,2]
[346235672,1734795756107,500.0,0.0002,2]
[346235673,1734795756926,500.0,0.00019178,2]
[346235674,1734795756987,609.75,0.00019178,2]
[346235675,1734795757210,609.75,0.00019452,2]
[346235676,1734795757275,500.0,0.00019452,2]
[346235677,1734795757494,609.75,0.00019726,2]
[346235678,1734795757556,500.0,0.00019726,2]
[346235679,1734795757765,609.75,0.0002,2]
[346235680,1734795757834,500.0,0.0002,2]
[346235681,1734795759178,1012.15910727,0.000196,2]
[346235682,1734795762733,596.1646932,0.0002,2]
[346235683,1734795764355,500.0,0.00019178,2]
[346235684,1734795765145,500.0,0.00019452,2]
[346235685,1734795765496,500.0,0.00019726,2]
[346235686,1734795765779,500.0,0.00019178,2]
[346235687,1734795765853,500.0,0.0002,2]
[346235688,1734795766071,500.0,0.00019452,2]
[346235690,1734795766307,500.0,0.00019726,2]
[346235691,1734795766553,500.0,0.0002,2]
[346235692,1734795768826,181.18,0.00010137,2]
[346235693,1734795769085,181.18,0.00016813,2]
[346235694,1734795770674,590.06,0.00019178,2]
[346235695,1734795770803,500.0,0.00019178,2]
[346235696,1734795770942,590.06,0.00019452,2]
[346235697,1734795771078,500.0,0.00019452,2]
[346235698,1734795771208,590.06,0.00019726,2]